bitfinex-derivatives/quotes_SOLF0:USTF0_20250626
["timestamp","ask_amount","ask_price","bid_price","bid_amount"]
[1750969977257,6.06899872,142.87,142.83,6.50437098]
[1750969977560,6.9973,142.86,142.83,6.9982]
[1750969978166,10.58377696,142.87,142.82,6.50437098]
[1750969978465,2.4643,142.86,142.8,11.01914922]
[1750969978655,6.9984,142.84,142.8,18.01864922]
[1750969979166,10.1971295,142.87,142.82,11.01914922]
[1750969979459,6.06899872,142.87,142.85,4.51477824]
[1750969980054,6.06899872,142.87,142.85,11.51217824]
[1750969980255,6.06899872,142.87,142.85,4.51477824]
[1750969980457,6.06899872,142.87,142.85,11.01914922]
[1750969980658,6.06899872,142.87,142.86,6.9969]
[1750969980965,6.06899872,142.87,142.86,11.51167824]
[1750969984465,6.06899872,142.87,142.86,6.9969]
[1750969984666,4.51477824,142.99,142.86,53.29914922]
[1750969984965,4.17434512,142.98,142.92,4.51477824]
[1750969985161,11.16614512,142.97,142.93,6.9933]
[1750969985362,6.9918,142.97,142.92,4.51477824]
[1750969985554,4.17434512,142.98,142.92,4.51477824]
[1750969985756,11.16574512,142.98,142.94,6.9927]
[1750969985960,6.9914,142.98,142.94,6.9927]
[1750969986160,6.9914,142.98,142.92,4.51477824]
[1750969986474,35.28,142.99,142.95,6.9922]
[1750969987064,35.28,142.99,142.94,4.51477824]
[1750969987764,42.2706,142.99,142.96,6.9916]
[1750969988465,42.2706,142.99,142.95,6.9923]
[1750969988466,6.9911,142.98,142.95,6.9923]
[1750969989471,42.2706,142.99,142.96,6.9919]
[1750969990763,35.28,142.99,142.96,6.9919]
[1750969990964,35.28,142.99,142.95,6.9922]
[1750969991664,35.28,142.99,142.96,6.9919]
[1750969991858,4.90357873,143.04,142.96,6.9919]
[1750969991859,4.90357873,143.04,142.96,4.51477824]
[1750969992065,35.26,143.04,142.98,4.51477824]
[1750969992466,42.2484,143.04,142.99,4.51477824]
[1750969992978,42.2484,143.04,143.0,4.51477824]
[1750969993269,35.26,143.04,142.98,4.51477824]
[1750969993475,35.26,143.04,143.0,6.9898]
[1750969993773,35.26,143.04,142.98,4.51477824]
[1750969994072,35.26,143.04,142.98,11.50577824]
[1750969994273,39.77477824,143.04,142.96,39.77477824]
[1750969994565,4.51477824,143.02,142.96,4.51477824]
[1750969995273,4.5534,143.03,142.97,6.9913]
[1750969995874,6.9899,143.01,142.97,6.9913]
[1750969996177,9.06817824,143.03,142.97,6.9913]
[1750969996575,6.9902,143.0,142.97,6.9913]
[1750969996869,9.06817824,143.03,142.95,4.51477824]
[1750969997076,4.51477824,142.99,142.93,39.77477824]
[1750969997280,35.26,142.98,142.93,4.51477824]
[1750969997776,35.26,142.98,142.93,11.50807824]
[1750969997979,6.9919,142.97,142.93,11.50807824]
[1750969998186,35.26,142.98,142.9,35.26]
[1750969998374,35.26,142.98,142.92,6.9939]
[1750969998573,6.9925,142.96,142.92,6.9939]
[1750969998881,35.26,142.98,142.92,6.9939]
[1750969999077,6.9925,142.96,142.92,6.9939]
[1750969999377,35.26,142.98,142.92,6.9939]
[1750969999674,6.9928,142.95,142.91,6.9943]
[1750970000169,6.9928,142.95,142.92,6.9939]
[1750970001172,6.9928,142.95,142.9,39.77477824]
[1750970001378,4.51477824,142.97,142.9,39.77477824]
[1750970001769,6.9933,142.94,142.91,6.9943]
[1750970003067,4.6916,142.97,142.9,39.77477824]
[1750970003272,35.26,142.98,142.92,4.51477824]
[1750970003778,6.9916,142.97,142.94,6.9927]
[1750970003979,4.51477824,143.0,142.94,4.51477824]
[1750970004174,36.04,143.0,142.94,4.51477824]
[1750970004373,43.0303,143.0,142.98,6.991]
[1750970004569,36.04,143.0,142.98,6.991]
[1750970004869,36.04,143.03,142.96,4.51477824]
[1750970005075,6.9895,143.02,142.98,6.9907]
[1750970005275,36.04,143.05,142.98,4.51477824]
[1750970005671,6.9889,143.03,143.0,6.9898]
[1750970006081,36.04,143.05,142.98,4.51477824]
[1750970006680,6.9889,143.03,142.98,4.51477824]
[1750970007179,6.9883,143.04,143.01,6.9896]
[1750970007378,36.04,143.05,142.98,4.51477824]
[1750970007576,2.3242,143.11,143.07,6.9863]
[1750970007774,42.03759874,143.13,143.08,4.51477824]
[1750970008274,5.99759874,143.13,143.07,36.04]
[1750970008470,5.99759874,143.13,143.11,4.51477824]
[1750970008678,5.99759874,143.13,143.09,4.51477824]
[1750970009573,5.99759874,143.13,143.11,4.51477824]
[1750970009768,5.99759874,143.13,143.12,6.9842]
[1750970010288,37.96,143.22,143.11,36.04]
[1750970010584,6.9807,143.2,143.15,6.70097374]
[1750970010784,37.96,143.22,143.17,6.9818]
[1750970010974,37.96,143.22,143.17,6.70097374]
[1750970011174,7.0833,143.25,143.17,6.70097374]
[1750970011377,13.78427374,143.25,143.16,44.66097374]
[1750970011578,7.0833,143.25,143.16,44.66097374]
[1750970011773,7.0833,143.25,143.18,6.70097374]
[1750970011975,666.84,143.34,143.22,6.70097374]
[1750970012179,9.0631547,143.33,143.25,6.70097374]
[1750970012377,6.70097374,143.3,143.2,2.3979]
[1750970012578,37.94,143.29,143.2,9.09887374]
[1750970012881,37.94,143.29,143.16,37.94]
[1750970013088,7.2068,143.28,143.2,6.70097374]
[1750970013273,13.67867374,143.26,143.21,6.9798]
[1750970013477,6.9777,143.26,143.21,6.9798]
[1750970013679,7.2068,143.28,143.21,6.70097374]
[1750970013876,39.54,143.31,143.22,6.70097374]
[1750970014077,39.54,143.31,143.24,6.70097374]
[1750970014277,7.1564,143.33,143.26,6.70097374]
[1750970014790,7.1564,143.33,143.26,46.24097374]
[1750970014986,6.9746,143.32,143.26,46.24097374]
[1750970015184,7.1564,143.33,143.26,46.24097374]
[1750970015486,6.9754,143.31,143.26,53.21797374]
[1750970015787,7.1564,143.33,143.26,46.24097374]
[1750970015987,6.9746,143.32,143.26,46.24097374]
[1750970016387,6.9755,143.3,143.26,39.54]
[1750970016592,6.70097374,143.33,143.26,39.54]
[1750970016786,6.70097374,143.31,143.23,6.9505]
[1750970017088,6.70097374,143.3,143.23,9.3186]
[1750970017384,39.52,143.31,143.24,6.70097374]
[1750970017579,6.9763,143.29,143.24,13.67907374]
[1750970017787,6.70097374,143.29,143.22,39.52]
[1750970017989,6.977,143.27,143.22,39.52]
[1750970018286,6.70097374,143.29,143.22,39.52]
[1750970018480,6.9769,143.27,143.22,46.4992]
[1750970018686,6.9769,143.27,143.22,39.52]
[1750970018885,9.19067374,143.3,143.22,39.52]
[1750970019083,6.9766,143.28,143.23,6.9788]
[1750970019288,9.19067374,143.3,143.23,6.9788]
[1750970019785,9.19067374,143.3,143.22,46.4993]
[1750970019991,9.19067374,143.3,143.22,39.52]
[1750970020191,6.9768,143.28,143.22,39.52]
[1750970020393,6.9768,143.28,143.23,6.9788]
[1750970020594,9.19067374,143.3,143.23,6.9788]
[1750970020886,6.70097374,143.28,143.22,39.52]
[1750970021286,39.5,143.27,143.2,142.98]
[1750970021894,6.9777,143.26,143.21,6.9797]
[1750970022091,6.9777,143.26,143.2,142.98]
[1750970022092,39.5,143.27,143.2,142.98]
[1750970022484,6.9787,143.24,143.2,6.9801]
[1750970022791,6.9787,143.24,143.16,41.7774]
[1750970022792,6.70097374,143.26,143.16,48.47837374]
[1750970022986,6.9785,143.24,143.16,48.47837374]
[1750970023185,41.9344,143.27,143.2,6.70097374]
[1750970023584,41.9344,143.27,143.21,6.9797]
[1750970024588,6.9777,143.26,143.22,6.9793]
[1750970024788,41.9344,143.27,143.2,46.20097374]
[1750970024990,39.5,143.27,143.2,46.20097374]
[1750970025186,46.477,143.27,143.22,6.9793]
[1750970025587,39.5,143.27,143.2,39.5]
[1750970025895,39.5,143.27,143.2,46.20097374]
[1750970026095,2.3625,143.29,143.2,46.20097374]
[1750970026392,6.9767,143.28,143.23,6.9784]
[1750970026589,6.9767,143.28,143.2,46.20097374]
[1750970026988,6.9771,143.27,143.2,46.20097374]
[1750970027393,6.9771,143.27,143.23,6.9785]
[1750970028198,6.9771,143.27,143.24,6.9783]
[1750970029095,2.3625,143.29,143.25,6.9778]
[1750970029289,2.3625,143.29,143.2,39.5]
[1750970029492,9.05627608,143.29,143.2,39.5]
[1750970029797,6.69377608,143.24,143.18,125.23677657]
[1750970030191,6.9804,143.2,143.18,125.23677657]
[1750970030398,6.69377608,143.22,143.14,39.5]
[1750970030700,6.9805,143.2,143.16,6.982]
[1750970030999,6.69377608,143.2,143.12,628.28]
[1750970031401,6.69377608,143.18,143.11,41.7883]
[1750970031588,6.69377608,143.18,143.08,11.49807608]
[1750970031784,39.5,143.17,143.08,11.49807608]
[1750970032193,6.9824,143.16,143.12,6.9839]
[1750970032494,4.6764,143.21,143.1,6.69377608]
[1750970032693,6.9814,143.18,143.14,6.983]
[1750970032895,46.19377608,143.2,143.11,39.5]
[1750970033492,46.19377608,143.2,143.13,6.9833]
[1750970034300,6.9821,143.17,143.13,6.9833]
[1750970034999,6.9821,143.17,143.11,39.5]
[1750970035301,13.67527608,143.18,143.11,39.5]
[1750970035800,6.9815,143.18,143.14,6.9829]
[1750970036189,39.5,143.2,143.15,6.9826]
[1750970036599,6.9821,143.17,143.11,39.5]
[1750970036898,6.9821,143.17,143.13,6.9834]
[1750970037102,6.69377608,143.19,143.11,39.5]
[1750970037498,6.69377608,143.19,143.13,6.9834]
[1750970037897,6.69377608,143.19,143.11,39.5]
[1750970037898,6.9818,143.17,143.11,39.5]
[1750970038105,6.9818,143.17,143.13,6.9835]
[1750970039504,6.9814,143.18,143.11,39.5]
[1750970039806,46.19377608,143.2,143.11,39.5]
[1750970040005,6.9815,143.18,143.15,6.9826]
[1750970040311,39.5,143.2,143.14,6.69377608]
[1750970040606,6.9796,143.22,143.18,6.981]
[1750970041197,48.69217608,143.23,143.15,39.5]
[1750970041198,39.5,143.23,143.16,6.69377608]
[1750970041404,39.5,143.23,143.16,13.98947608]
[1750970041607,6.9795,143.22,143.19,6.9807]
[1750970041797,6.9795,143.22,143.16,13.98947608]
[1750970041798,39.5,143.23,143.16,13.98947608]
[1750970041998,46.19377608,143.23,143.15,39.5]
[1750970042202,46.19377608,143.23,143.16,6.9821]
[1750970042602,46.19377608,143.23,143.15,39.5]
[1750970042794,6.69377608,143.21,143.15,6.9825]
[1750970043007,6.69377608,143.19,143.12,39.5]
[1750970043310,6.9816,143.18,143.14,6.9829]
[1750970044306,6.9819,143.17,143.13,6.9835]
[1750970044518,6.9819,143.17,143.12,39.5]
[1750970044806,6.9827,143.16,143.12,6.984]
[1750970044997,6.69377608,143.17,143.09,39.5]
[1750970045404,6.9832,143.15,143.11,6.9844]
[1750970045607,39.5,143.19,143.09,39.5]
[1750970045808,6.69377608,143.18,143.09,39.5]
[1750970046204,6.69377608,143.16,143.09,39.5]
[1750970046604,39.5,143.15,143.06,7.034]
[1750970046812,6.69377608,143.14,143.06,46.534]
[1750970047112,6.69377608,143.14,143.08,6.9859]
[1750970047113,6.9846,143.12,143.08,6.9859]
[1750970048605,6.9847,143.11,143.08,6.9859]
[1750970049200,6.69377608,143.14,143.06,44.1904]
[1750970049813,6.69377608,143.14,143.08,6.986]
[1750970050012,6.69377608,143.14,143.06,44.1904]
[1750970050213,6.69377608,143.14,143.06,41.8495]
[1750970050412,6.9854,143.1,143.06,6.987]
[1750970050608,6.69377608,143.12,143.03,39.5]
[1750970050817,39.5,143.11,143.03,39.5]
[1750970051013,6.9855,143.1,143.03,39.5]
[1750970051406,6.9855,143.1,143.06,6.9867]
[1750970051620,46.4848,143.11,143.03,39.5]
[1750970051920,46.4848,143.11,143.07,6.9864]
[1750970053220,39.5,143.11,143.04,6.69377608]
[1750970054014,46.4849,143.11,143.08,6.986]
[1750970054619,46.4849,143.11,143.07,6.9864]
[1750970054811,46.4849,143.11,143.04,6.69377608]
[1750970055418,46.4849,143.11,143.08,6.9861]
[1750970057125,6.9853,143.1,143.07,6.9864]
[1750970057518,39.5,143.11,143.03,39.5]
[1750970057919,6.9857,143.09,143.02,50.93097608]
[1750970058120,39.5,143.11,143.02,50.93097608]
[1750970059720,6.9859,143.09,143.06,6.9871]
[1750970060316,6.9859,143.09,143.02,50.93097608]
[1750970060524,6.9863,143.08,143.05,6.9876]
[1750970060721,6.9863,143.08,142.98,642.3018]
[1750970060722,6.69377608,143.08,142.99,39.52]
[1750970061220,39.52,143.07,142.99,39.52]
[1750970061423,6.69377608,143.06,142.99,39.52]
[1750970061620,39.52,143.07,143.0,6.69377608]
[1750970062118,39.52,143.07,142.99,39.52]
[1750970062119,39.52,143.07,143.02,6.69377608]
[1750970062421,6.69377608,143.12,143.05,6.9874]
[1750970062422,6.9862,143.08,143.05,6.9874]
[1750970062621,39.52,143.1,143.01,6.69377608]
[1750970063022,6.9866,143.08,143.05,6.9874]
[1750970063220,39.52,143.1,143.01,6.71257821]
[1750970063820,39.52,143.1,142.99,39.52]
[1750970064223,6.9865,143.08,143.05,6.9873]
[1750970064624,6.9865,143.08,143.06,6.9871]
[1750970064931,39.52,143.1,142.99,45.8440025]
[1750970065227,39.52,143.1,143.04,6.71049074]
[1750970065415,39.52,143.1,143.04,46.23049074]
[1750970065616,39.52,143.1,143.07,6.9862]
[1750970065816,46.5055,143.1,143.04,46.23049074]
[1750970066828,46.5055,143.1,143.07,6.9863]
[1750970067128,46.5055,143.1,143.04,46.23049074]
[1750970067322,6.9857,143.09,143.04,39.52]
[1750970067622,39.52,143.1,143.07,6.9863]
[1750970067815,46.5054,143.1,143.04,39.52]
[1750970068018,46.5054,143.1,143.07,6.9863]
[1750970069627,39.52,143.1,143.04,46.23049074]
[1750970069832,39.52,143.1,143.04,39.52]
[1750970070231,39.52,143.1,143.01,39.52]
[1750970070619,39.52,143.1,143.04,6.9879]
[1750970070620,6.9869,143.07,143.04,6.9879]
[1750970071223,6.71444557,143.08,143.04,6.9879]
[1750970071430,6.71444557,143.08,143.01,39.52]
[1750970071826,6.71444557,143.06,143.02,6.9888]
[1750970072035,46.23444557,143.06,142.99,4.889]
[1750970072222,39.52,143.09,143.01,6.71444557]
[1750970072523,39.52,143.1,143.01,6.71444557]
[1750970072730,6.71444557,143.09,143.01,6.71444557]
[1750970072928,6.71444557,143.09,143.05,6.9874]
[1750970073129,6.71444557,143.09,143.01,6.71444557]
[1750970073326,13.70034557,143.09,143.01,6.71444557]
[1750970073527,13.70034557,143.09,143.06,6.9867]
[1750970073933,46.5054,143.1,143.03,6.71444557]
[1750970075329,46.5054,143.1,143.03,13.03844807]
[1750970076325,46.5054,143.1,143.04,6.3240025]
[1750970076728,46.5054,143.1,143.03,13.03844807]
[1750970077228,39.52,143.1,143.08,6.9859]
[1750970077428,39.52,143.1,143.04,6.3240025]
[1750970078521,39.52,143.1,143.03,13.03844807]
[1750970078728,46.5053,143.1,143.07,6.9864]
[1750970079127,46.5053,143.1,143.03,13.03844807]
[1750970079339,46.5053,143.1,143.04,6.3240025]
[1750970080330,6.9857,143.09,143.04,6.3240025]
[1750970080533,6.71444557,143.09,143.02,45.1040025]
[1750970080728,6.71444557,143.09,143.02,38.78]
[1750970080928,6.71444557,143.09,143.04,6.9878]
[1750970081234,6.9869,143.07,143.04,6.9878]
[1750970081539,6.9865,143.08,143.05,6.9875]
[1750970082141,6.71444557,143.09,143.05,6.9875]
[1750970082638,6.71444557,143.09,143.01,6.3240025]
[1750970082836,4.3261834,143.09,142.99,56.70744807]
[1750970083133,6.9866,143.08,143.01,6.3240025]
[1750970083335,11.3127834,143.08,143.01,6.3240025]
[1750970083934,6.9858,143.09,143.02,6.71444557]
[1750970084133,6.9858,143.09,143.02,13.03844807]
[1750970084438,6.9858,143.09,143.06,6.9868]
[1750970084634,6.9858,143.09,143.02,13.03844807]
[1750970085044,46.5054,143.1,143.02,13.03844807]
[1750970085234,46.5054,143.1,143.03,6.3240025]
[1750970085441,6.9857,143.09,143.06,6.9867]
[1750970086232,39.52,143.1,143.03,6.3240025]
[1750970086433,4.32899356,143.12,143.04,13.03844807]
[1750970086637,4.32899356,143.12,143.09,6.9853]
[1750970086840,11.31349356,143.12,143.09,6.9853]
[1750970087029,11.31349356,143.12,143.06,6.3240025]
[1750970087235,6.9845,143.12,143.1,6.985]
[1750970087831,52.8301,143.13,143.1,6.985]
[1750970089041,667.24,143.16,143.09,6.3240025]
[1750970089241,4.1555933,143.15,143.1,13.03844807]
[1750970089436,45.7625,143.16,143.13,6.9834]
[1750970089838,49.92096019,143.16,143.13,6.9834]
[1750970090038,45.7625,143.16,143.13,6.9834]
[1750970090636,6.9828,143.15,143.13,6.9834]
[1750970090838,6.9828,143.15,143.12,6.984]
[1750970091040,45.49444557,143.16,143.09,6.3240025]
[1750970091242,49.65290576,143.16,143.09,6.3240025]
[1750970091441,6.9841,143.13,143.09,6.3240025]
[1750970091641,45.49444557,143.16,143.08,6.3240025]
[1750970091844,4.15834083,143.15,143.08,6.3240025]
[1750970092544,6.71444557,143.14,143.08,6.3240025]
[1750970092739,6.71444557,143.14,143.07,6.3240025]
[1750970092944,10.8727864,143.14,143.07,6.3240025]
[1750970093245,6.71444557,143.14,143.07,6.3240025]
[1750970093443,6.985,143.11,143.08,6.9859]
[1750970095450,6.9852,143.1,143.07,13.3105025]
[1750970095646,6.9852,143.1,143.07,6.9865]
[1750970096854,11.862,143.11,143.08,6.9859]
[1750970099853,6.9852,143.1,143.07,6.9864]
[1750970100052,11.59144557,143.11,143.06,6.3240025]
[1750970100255,6.9855,143.1,143.05,6.3240025]
[1750970100754,6.9855,143.1,143.07,6.9863]
[1750970101460,2.4764,143.12,143.07,4.47449579]
[1750970101755,43.25449579,143.16,143.09,10.79849829]
[1750970101951,11.15841598,143.15,143.12,6.9838]
[1750970102150,11.15841598,143.15,143.09,10.79849829]
[1750970102653,6.9833,143.14,143.09,10.79849829]
[1750970103056,4.17561598,143.15,143.09,10.79849829]
[1750970103259,38.78,143.16,143.1,10.79849829]
[1750970103763,6.983,143.15,143.1,6.3240025]
[1750970104260,48.1476,143.16,143.1,6.3240025]
[1750970104758,48.1476,143.16,143.13,6.9834]
[1750970105156,6.9828,143.15,143.1,6.3240025]
[1750970105361,41.1651,143.16,143.12,6.984]
[1750970105557,48.1476,143.16,143.1,6.3240025]
[1750970106160,56.57972782,143.57,143.13,10.79849829]
[1750970106161,37.96,143.19,143.13,10.79849829]
[1750970106455,37.96,143.19,143.17,6.9815]
[1750970106656,44.9411,143.19,143.13,10.79849829]
[1750970106854,42.43449579,143.19,143.13,6.3240025]
[1750970107058,42.43449579,143.19,143.12,44.2840025]
[1750970107259,6.9821,143.17,143.12,44.2840025]
[1750970107763,4.47449579,143.17,143.11,6.3240025]
[1750970108060,4.47449579,143.17,143.1,6.3240025]
[1750970108253,4.47449579,143.17,143.12,6.9842]
[1750970108455,6.9828,143.15,143.12,6.9842]
[1750970109065,6.9824,143.16,143.13,6.9837]
[1750970109474,6.9824,143.16,143.1,6.3240025]
[1750970109767,6.9824,143.16,143.11,6.3240025]
[1750970110159,6.983,143.15,143.12,6.984]
[1750970110556,4.47449579,143.16,143.11,6.9845]
[1750970110775,2.4065,143.18,143.08,6.3240025]
[1750970110776,4.47449579,143.14,143.08,6.3240025]
[1750970111066,37.96,143.15,143.07,6.9863]
[1750970111067,4.47449579,143.1,143.07,6.9863]
[1750970111452,4.47449579,143.1,143.05,6.3240025]
[1750970111657,4.47449579,143.1,143.06,6.9867]
[1750970112055,4.47449579,143.1,143.04,6.3240025]
[1750970112361,44.6717406,143.11,143.06,6.9868]
[1750970112560,6.9856,143.1,143.04,6.3240025]
[1750970114260,6.9856,143.1,143.06,6.9867]
[1750970114667,6.9856,143.1,143.04,6.3240025]
[1750970115269,6.9856,143.1,143.07,6.9866]
[1750970115470,44.6717406,143.11,143.04,6.3240025]
[1750970115669,2.4607,143.1,143.04,6.3240025]
[1750970116072,6.9864,143.08,143.05,6.9873]
[1750970117768,6.7117406,143.09,143.04,13.3120025]
[1750970117961,11.5357406,143.09,143.02,37.96]
[1750970118963,6.7117406,143.07,143.0,6.3240025]
[1750970119181,37.96,143.06,143.0,6.3240025]
[1750970119367,6.9885,143.04,143.0,6.9898]
[1750970119976,37.96,143.06,143.0,6.9898]
[1750970120178,37.96,143.06,143.01,6.9895]
[1750970121575,6.7117406,143.05,143.0,6.9899]
[1750970121764,6.7117406,143.05,142.98,6.3240025]
[1750970121969,6.989,143.03,142.98,6.3240025]
[1750970122170,6.7117406,143.05,142.99,6.9903]
[1750970123471,6.9889,143.03,142.97,6.3240025]
[1750970123777,6.7117406,143.05,142.97,6.3240025]
[1750970123982,6.7117406,143.05,142.99,6.9902]
[1750970124480,6.9894,143.02,142.99,6.9902]
[1750970124674,44.6717406,143.06,142.97,6.7117406]
[1750970124977,44.6717406,143.06,142.97,13.0357431]
[1750970125181,44.6717406,143.06,142.97,6.3240025]
[1750970125383,44.6717406,143.06,142.96,44.2840025]
[1750970125583,44.6717406,143.06,142.99,6.9902]
[1750970125879,44.6717406,143.06,142.96,44.2840025]
[1750970126179,6.9889,143.03,142.99,6.9905]
[1750970126878,6.9894,143.02,142.99,6.9905]
[1750970128979,6.9894,143.02,142.96,44.2840025]
[1750970128980,6.9894,143.02,143.0,6.99]
[1750970129174,44.6717406,143.06,143.0,6.99]
[1750970129383,37.96,143.06,142.97,13.0357431]
[1750970129579,37.96,143.06,143.01,6.9893]
[1750970130185,6.9882,143.04,143.01,6.9893]
[1750970130683,6.9882,143.04,143.02,6.9891]
[1750970130894,6.9882,143.04,142.99,6.7117406]
[1750970131582,6.9882,143.04,143.01,6.9892]
[1750970131785,6.9886,143.03,142.99,6.7117406]
[1750970131981,44.6717406,143.06,142.97,13.0357431]
[1750970132292,6.9885,143.04,142.97,13.0357431]
[1750970132584,37.96,143.06,143.0,6.9898]
[1750970132778,6.9889,143.03,143.0,6.9898]
[1750970132985,37.96,143.06,142.98,6.7117406]
[1750970133578,37.96,143.06,142.98,13.0357431]
[1750970133977,4.824,143.09,143.02,6.7117406]
[1750970134176,2.4607,143.1,143.02,44.2517406]
[1750970134379,2.4607,143.1,143.04,11.46144463]
[1750970134380,6.9867,143.07,143.04,11.46144463]
[1750970134590,2.4607,143.1,143.04,4.47364463]
[1750970135286,6.986,143.09,143.06,6.9871]
[1750970135486,2.4607,143.1,143.04,4.47364463]
[1750970136292,6.9866,143.08,143.04,4.47364463]
[1750970136501,4.47364463,143.09,143.02,42.01364463]
[1750970137696,4.47364463,143.09,143.02,37.54]
[1750970137996,4.47364463,143.07,143.0,4.47364463]
[1750970138195,6.9879,143.05,143.0,4.47364463]
[1750970138791,6.9879,143.05,143.02,6.9888]
[1750970139800,6.9882,143.04,143.01,6.9894]
[1750970141187,37.54,143.07,143.0,4.47364463]
[1750970141397,42.01364463,143.07,142.99,7.2761]
[1750970141590,4.47364463,143.05,142.99,4.8421]
[1750970141891,4.47364463,143.05,142.99,2.3802]
[1750970142098,4.47364463,143.05,142.98,37.54]
[1750970143082,6.989,143.03,142.99,6.9903]
[1750970143689,6.9893,143.02,142.99,6.9903]
[1750970143897,4.47364463,143.05,142.98,37.54]
[1750970144093,4.47364463,143.05,142.98,42.01364463]
[1750970144292,4.6231,143.06,143.02,6.989]
[1750970144510,42.01364463,143.07,143.02,6.989]
[1750970145002,6.9876,143.06,143.02,6.989]
[1750970145498,42.01364463,143.07,143.02,6.989]
[1750970146101,6.9879,143.05,143.02,6.989]
[1750970146293,42.01364463,143.07,143.03,6.9885]
[1750970146593,42.01364463,143.07,143.0,4.47364463]
[1750970146804,6.9872,143.06,143.03,6.9884]
[1750970146994,6.9872,143.06,143.0,4.47364463]
[1750970147194,49.00054463,143.07,143.0,4.47364463]
[1750970147395,37.54,143.07,143.02,4.47364463]
[1750970148106,37.54,143.07,143.01,2.4978]
[1750970148302,37.54,143.07,143.02,4.47364463]
[1750970148599,37.54,143.07,143.05,6.9873]
[1750970150297,37.54,143.07,143.04,6.9879]
[1750970150695,44.5269,143.07,143.04,6.9879]
[1750970154608,44.5269,143.07,143.02,6.3240025]
[1750970155207,37.54,143.07,143.02,6.3240025]
[1750970155406,37.54,143.07,143.05,6.9874]
[1750970156202,44.5267,143.07,143.04,6.9879]
[1750970159610,44.5267,143.07,143.05,6.9875]
[1750970159812,37.54,143.07,143.05,6.9875]
[1750970160507,44.5267,143.07,143.05,6.9875]
[1750970160711,37.54,143.07,143.05,6.9875]
[1750970161610,37.54,143.07,143.06,6.9871]
[1750970161809,37.54,143.07,143.03,6.3240025]
[1750970162113,4.47364463,143.09,143.04,6.3240025]
[1750970162312,6.9864,143.08,143.05,6.9873]
[1750970162815,6.9864,143.08,143.06,6.9871]
[1750970164912,42.01364463,143.09,143.06,6.9871]
[1750970165509,37.54,143.09,143.04,6.3240025]
[1750970165917,4.15506878,143.1,143.04,10.79764713]
[1750970166117,36.86,143.12,143.06,4.47364463]
[1750970166317,36.86,143.12,143.07,6.3240025]
[1750970166519,36.86,143.12,143.11,6.9847]
[1750970169930,36.86,143.12,143.1,6.985]
[1750970170631,36.86,143.12,143.11,6.9847]
[1750970171922,16.34124463,143.14,143.11,6.9847]
[1750970173022,13.83444463,143.14,143.11,6.9847]
[1750970173223,13.83444463,143.14,143.12,6.9842]
[1750970173429,13.83444463,143.14,143.07,6.3240025]
[1750970173931,13.83444463,143.14,143.11,6.9845]
[1750970176138,6.9838,143.13,143.1,6.9849]
[1750970178138,6.9838,143.13,143.11,6.9847]
[1750970186249,13.83444463,143.14,143.11,6.9847]
[1750970186449,11.45714463,143.14,143.11,6.9847]
[1750970186652,11.45714463,143.14,143.12,6.9842]
[1750970186953,50.64554463,143.15,143.08,4.47364463]
[1750970187246,36.86,143.15,143.08,4.47364463]
[1750970187455,36.86,143.15,143.1,4.47364463]
[1750970187638,36.86,143.15,143.13,6.9835]
[1750970189151,9.4088,143.18,143.15,6.9827]
[1750970189852,6.9816,143.18,143.15,6.9827]
[1750970190249,11.7441,143.19,143.11,43.1640025]
[1750970190555,9.23674463,143.19,143.11,47.63764713]
[1750970190754,6.9814,143.18,143.15,6.9825]
[1750970191446,16.21764463,143.19,143.15,6.9825]
[1750970192553,16.21764463,143.19,143.14,6.983]
[1750970192554,6.9814,143.18,143.14,6.983]
[1750970192854,4.47364463,143.15,143.09,8.62726135]
[1750970193052,4.47364463,143.15,143.11,6.43376978]